Cogmind - Beta 11 X5 @@@ ROGUE MODE // 2021.07.06 @ 12:08:16 Player: AlmondRoll Result: Destroyed by D-53 Grenadier with Mini Grenade Launcher Performance ------------- Evolutions (0) 0 Regions Visited (2) 400 Robots Destroyed (15) 75 Value Destroyed (252) 252 Prototype IDs (2) 40 Alien Tech Used (0) 0 Bonus (0) 0 TOTAL SCORE: 767 Bonus ------- None Cogmind --------- Core Integrity 0/250 Matter 276/300 Energy 32/100 System Corruption 1% Temperature Cool (10) Movement Treading (360) Ox2 Location -10/Mines Parts ------- > --- POWER (1) -------- (None) > --- PROPULSION (2) --- Light Treads Light Treads > --- UTILITY (2) ------ Huge Storage Unit > --- WEAPON (2) ------- EM Pulse Gun Light Assault Rifle > --- INVENTORY (25) --- Light Ion Engine Light Ion Engine Light Nuclear Core Light Nuclear Core Wheel Wheel Compact Wheel Compact Wheel Improved Heat Sink Small Storage Unit Medium Matter Pod (100) Medium Matter Pod (100) Medium Matter Pod (70) High-capacity Matter Pod (0) Faulty Experimental Sensor Array Improved Terrain Scanner Light Assault Rifle Peak State ------------ > --- POWER ------------ Light Ion Engine > --- PROPULSION ------- Wheel Compact Wheel > --- UTILITY ---------- Huge Storage Unit Light Armor Plating > --- WEAPON ----------- EM Pulse Gun Light Assault Rifle > --- INVENTORY -------- Light Ion Engine Light Nuclear Core Light Nuclear Core Light Treads Light Treads Wheel Compact Wheel Compact Wheel Improved Heat Sink Small Storage Unit Medium Matter Pod Medium Matter Pod Medium Matter Pod High-capacity Matter Pod Experimental Sensor Array Improved Terrain Scanner Light Armor Plating Light Assault Rifle Light Assault Rifle [Rating: 10] Favorites ----------- Power Light Ion Engine Engine Light Ion Engine Propulsion Wheel Treads Light Treads Leg Aluminum Leg Wheel Wheel Utility Huge Storage Unit Storage Huge Storage Unit Protection Light Armor Plating Weapon EM Pulse Gun Energy Gun EM Pulse Gun Ballistic Gun Light Assault Rifle Build | -11 -10 -10 ------- Run | Scr Mat Min Slots Evolved . | . . . Power . | . . . Propulsion . | . . . Utility . | . . . Weapon . | . . . Parts Attached 14 | 3 2 9 Power 2 | 1 . 1 Engine 2 | 1 . 1 Core . | . . . Reactor . | . . . Propulsion 6 | 2 . 4 Treads 2 | . . 2 Leg . | . . . Wheel 4 | 2 . 2 Hover . | . . . Flight . | . . . Utility 4 | . 2 2 Device . | . . . Storage 1 | . 1 . Processor . | . . . Hackware . | . . . Protection 3 | . 1 2 Artifact . | . . . Weapon 2 | . . 2 Energy Gun 1 | . . 1 Energy Cannon . | . . . Ballistic Gun 1 | . . 1 Ballistic Cannon . | . . . Launcher . | . . . Special Weapon . | . . . Impact Weapon . | . . . Slashing Weapon . | . . . Piercing Weapon . | . . . Special Melee Weapon . | . . . Unidentified Prototypes . | . . . Parts Lost 9 | . . 9 Power 2 | . . 2 Propulsion 2 | . . 2 Utility 3 | . . 3 Weapon 2 | . . 2 Highest Loss Streak 5 | . . 5 Average Slot Usage (%) 94 | . 97 91 Engine 12 | . 14 10 Wheel 26 | . 28 23 Storage 14 | . 14 14 Protection 12 | . 11 13 Energy Gun 14 | . 14 14 Ballistic Gun 14 | . 14 14 Naked Turns . | . . . Heaviest Build 89 | 13 89 89 Greatest Support 26 | 20 20 26 Greatest Overweight (x) 8 | . 4 8 Average Overweight (x) 2 | . 2 3 Largest Inventory Capacity 25 | 8 25 25 Average Capacity 22 | 8 22 25 Most Carried 21 | 8 19 21 Average Carried 15 | 6 12 19 Final Capacity 25 | 8 25 25 Final Carried 19 | 8 19 17 Class Distribution -------------------- 100% | Mutant Dominant Class ---------------- Mutant | -10/Materials Mutant | -10/Mines Resources | -11 -10 -10 ----------- Run | Scr Mat Min Matter Collected 589 | 233 179 177 Remotely . | . . . Salvage Created 599 | 124 179 296 Parts 31 | 6 7 18 Haulers Intercepted . | . . . Recyclers Shooed 3 | 1 1 1 Parts Field Recycled . | . . . Retrieved Matter . | . . . Parts Self-Destructed . | . . . Prevented . | . . . Kills | -11 -10 -10 ------- Run | Scr Mat Min Combat Hostiles Destroyed 10 | . 2 8 Guns 8 | . 2 6 AOE 2 | . . 2 Classes Destroyed 5 | 2 1 2 Builder 1 | . . 1 Tunneler 1 | 1 . . Recycler 3 | 1 1 1 Swarmer 6 | . . 6 Grunt 4 | . 2 2 Best Kill Streak 3 | 2 2 3 Combat Bots Only 3 | . 2 3 Max Kills in Single Turn 1 | 1 1 1 Gunslinging . | . . . Exploded 1 | . . 1 Melee . | . . . Uniques/NPCs Destroyed . | . . . Combat | -11 -10 -10 -------- Run | Scr Mat Min Damage Taken 1282 | . 124 1158 Core 263 | . 17 246 Absorbed by Shields . | . . . Core Remaining (%) 100 | 100 . . Volleys Fired 52 | 3 10 39 Largest 2 | 2 2 2 Hottest 60 | 60 60 60 Shots Fired 104 | 6 20 78 Gun 104 | 6 20 78 Cannon . | . . . Launcher . | . . . Special . | . . . Kinetic 52 | 3 10 39 Thermal . | . . . Explosive . | . . . Electromagnetic 52 | 3 10 39 Robot Hit Streak 12 | 4 5 12 Robot Miss Streak 5 | 1 1 5 Penetration Max . | . . . Secondary Targets 1 | . . 1 Max Gunslinging Chain 1 | . . 1 Shots Hit Robots 62 | 4 15 43 Core Hits 32 | 4 6 22 Critical Kills . | . . . Critical Parts Destroyed . | . . . Critical Strikes 1 | . 1 . Corrupt 1 | . 1 . Melee Attacks . | . . . Impact . | . . . Slashing . | . . . Piercing . | . . . Sneak Attacks . | . . . Combat Hostiles . | . . . Follow-up Attacks . | . . . Damage Inflicted 779 | 56 182 541 Guns 706 | 56 182 468 Cannons . | . . . Explosions 59 | . . 59 Melee . | . . . Ramming 14 | . . 14 Kinetic 218 | 16 48 154 Thermal 59 | . . 59 Explosive . | . . . Electromagnetic 488 | 40 134 314 Impact . | . . . Slashing . | . . . Piercing . | . . . Highest Corruption 1 | . . 1 Average Corruption 1 | . . 1 Corruption Purged . | . . . Overload Shots . | . . . Overflow Damage . | . . . Projectiles . | . . . Explosions . | . . . Melee . | . . . Knockbacks . | . . . Impact . | . . . Kinetic . | . . . Secondary . | . . . Self-Inflicted Damage 7 | . . 7 Shots . | . . . Rammed 1 | . . 1 Targets Rammed 1 | . . 1 Kicked . | . . . Crushed . | . . . Highest Temperature 227 | 40 151 227 Average Temperature 77 | 21 61 84 Received Heat Transfer 249 | . 72 177 Siege Activations . | . . . Robots Corrupted . | . . . Combat Hostiles . | . . . Parts Fried 2 | . 1 1 Impact Corruptions . | . . . Robots Melted . | . . . Combat Hostiles . | . . . Parts Melted . | . . . Heat Transferred . | . . . Parts Sabotaged . | . . . Parts Stolen . | . . . Parts Stripped . | . . . Power Chain Reactions 2 | . . 2 Missiles Intercepted . | . . . Alert | -11 -10 -10 ------- Run | Scr Mat Min Peak Influence 207 | 10 122 207 Initial 47 | . 6 47 Average 104 | 7 77 157 Maximum Alert Level 1 | . . 1 Low Security (%) 86 | 100 100 65 Level 1 13 | . . 34 Level 2 . | . . . Level 3 . | . . . Level 4 . | . . . Level 5 . | . . . High Security . | . . . Max Security . | . . . Squads Dispatched . | . . . Investigation . | . . . Extermination . | . . . Reinforcement . | . . . Assault . | . . . Garrison . | . . . Intercept . | . . . Construction Impeded . | . . . Haulers Reinforced . | . . . Cargo Convoy Interrupts . | . . . Stealth | -11 -10 -10 --------- Run | Scr Mat Min Distress Signals 1 | . 1 . Communications Jammed . | . . . Distress Signals . | . . . Times Spotted 29 | . 6 23 Peak Tracking Total 9 | . 3 9 Tactical Retreats . | . . . Traps | -11 -10 -10 ------- Run | Scr Mat Min Traps Triggered . | . . . Indirectly . | . . . Trap Hack Attempts . | . . . Triggered . | . . . Disarmed . | . . . Reprogrammed . | . . . Reused . | . . . Traps Extracted . | . . . Installed . | . . . Triggered . | . . . Machines | -11 -10 -10 ---------- Run | Scr Mat Min Machines Disabled . | . . . Max in Single Turn . | . . . Machines Sabotaged . | . . . Garrisons Compromised . | . . . Overloaded Fab Kills . | . . . Fab Network Shutdowns . | . . . Hacking | -11 -10 -10 --------- Run | Scr Mat Min Machines Accessed 2 | . 2 . Terminals 2 | . 2 . Fabricators . | . . . Repair Stations . | . . . Recycling Units . | . . . Scanalyzers . | . . . Garrison Access . | . . . Total Hacks 8 | . 8 . Successful 4 | . 4 . Failed 4 | . 4 . Catastrophic . | . . . Database Lockouts . | . . . Manual 7 | . 7 . Terminals 8 | . 8 . Fabricators . | . . . Repair Stations . | . . . Recycling Units . | . . . Scanalyzers . | . . . Garrison Access . | . . . Terminal Hacks 3 | . 3 . Prototype ID Bank 1 | . 1 . Terminal Index 1 | . 1 . Hauler Manifests 1 | . 1 . Fabricator Hacks . | . . . Repair Station Hacks . | . . . Recycling Unit Hacks . | . . . Scanalyzer . | . . . Garrison Access Hacks . | . . . Unauthorized Hacks 1 | . 1 . Terminals 1 | . 1 . Botnet 1 | . 1 . Fabricators . | . . . Repair Stations . | . . . Recycling Units . | . . . Scanalyzers . | . . . Garrison Access . | . . . Data Cores Recovered . | . . . Used . | . . . Hacking Detections 2 | . 2 . Full Trace Events . | . . . Feedback Events . | . . . Feedback Blocked . | . . . Robot Schematics Acquired . | . . . Robots Built . | . . . Matter . | . . . Time . | . . . Total Robot Build Rating . | . . . Part Schematics Acquired . | . . . Parts Built . | . . . Matter . | . . . Time . | . . . Total Part Build Rating . | . . . Parts Repaired . | . . . Time . | . . . Parts Recycled . | . . . Recycled Matter . | . . . Retrieved Matter . | . . . Retrieved Components . | . . . Parts Scanalyzed . | . . . Part Schematics Acquired . | . . . Parts Damaged . | . . . Bothacking | -11 -10 -10 ------------ Run | Scr Mat Min Used RIF Installer . | . . . Robots Hacked . | . . . Non-combat . | . . . Combat . | . . . Robot Hacks Applied . | . . . Relay Couplers Released . | . . . Robots Rewired . | . . . Allies Hacked . | . . . Hacks Repelled . | . . . Allies | -11 -10 -10 -------- Run | Scr Mat Min Total Allies . | . . . Largest Group . | . . . Highest-Rated Group . | . . . Highest-Rated Ally . | . . . Total Orders . | . . . Ally Attacks . | . . . Total Damage . | . . . Kills . | . . . Allies Corrupted . | . . . Allies Melted . | . . . Intel | -11 -10 -10 ------- Run | Scr Mat Min Robot Analysis Total . | . . . Derelict Logs Recovered . | . . . Drone Launches . | . . . Drone Recoveries . | . . . Exploration | -11 -10 -10 ------------- Run | Scr Mat Min Turns Passed 686 | 41 372 273 Spaces Moved 395 | 26 266 103 Core . | . . . Treads . | . . . Legs . | . . . Wheels 395 | 26 266 103 Hover . | . . . Flight . | . . . Fastest Speed 80 | 80 80 135 Average Speed 124 | 80 121 140 Slowest Speed 200 | 80 140 200 Overloaded Moves . | . . . Propulsion Burnouts . | . . . Robots Hopped . | . . . Cave-ins Triggered . | . . . Exploration Rate (%) 25 | 3 42 31 Regions Visited 2 Branch Regions 1 Pre-discovered Areas . | . . . Known Exits Taken . | . . . Unknown Exits Taken 2 | 1 1 . Scrap Searched . | . . . Spaces Dug . | . . . Terrain Destroyed 8 | . . 8 Melee . | . . . Projectile . | . . . AOE 8 | . . 8 Terrain Rammed . | . . . Walls Destroyed . | . . . Machines Disabled . | . . . Actions | -11 -10 -10 --------- Run | Scr Mat Min Total 498 | 42 296 160 Wait 5 | . 3 2 Move 393 | 25 265 103 Hop . | . . . Pick Up 24 | 6 13 5 Fast Attach 4 | 1 2 1 Attach 9 | 2 . 7 Detach . | . . . Swap 1 | . . 1 Drop 9 | 5 3 1 Fire 52 | 3 10 39 Melee . | . . . Ram 1 | . . 1 Kick . | . . . Crush . | . . . Escape Stasis . | . . . Rewire . | . . . Trap . | . . . Miscellaneous . | . . . Route ------- -11/Scrapyard -10/Materials (discovered 3 exits: [*Mat] / [*Min x2]) -10/Mines History --------- Turn | Location | Event 10 | -11/Scrapyard | Discovered new exit (range 2) 42 | -11/Scrapyard | Entered Materials 51 | -10/Materials | Discovered new exit (range 15) 143 | -10/Materials | Discovered new exit (range 16) 320 | -10/Materials | Build established: Mutant 362 | -10/Materials | Discovered new exit (range 3) 414 | -10/Materials | Entered Mines 503 | -10/Mines | Lost 4 parts (1p1n1u1w) 511 | -10/Mines | Found a damaged Exp. Sensor Array with a note attached 514 | -10/Mines | Found Prototype Device 553 | -10/Mines | Core integrity fell below 50% 635 | -10/Mines | Assembled infested the area 640 | -10/Mines | Assisted by a Guerilla fighting off Assembled 682 | -10/Mines | Core integrity fell below 20% 687 | -10/Mines | Destroyed by D-53 Grenadier with Mini Grenade Launcher Last Messages --------------- 00666_ Acquired 25 matter. 00666_ Lgt. Armor Plating destroyed. 00666_ System corrupted by crushing effect (+1). 00668_ Acquired 4 matter. 00669_ Knocked back. 00670_ Acquired 12 matter. 00671_ as-58247 destroyed. 00671_ as-62300 destroyed. 00673_ Com. Wheel destroyed. 00673_ as-64045 destroyed. 00673_ as-96212 destroyed. 00673_ as-77857 destroyed. 00673_ as-18051 destroyed. 00674_ The unstable cave ceiling collapses. 00677_ Lgt. Armor Plating destroyed. 00679_ as-83021 destroyed. 00679_ as-63535 destroyed. 00680_ The unstable cave ceiling collapses. 00683_ Lgt. Assault Rifle destroyed. 00684_ The unstable cave ceiling collapses. Map ----- +----------------------------------------------------+ | ?????????????????????????????????????????????????? | | ?????????????????????????????????????????????????? | | ?????????????????????????????????????????????????? | | ?????????????????????????????????????????????????? | | ?????????????????????????????????????????????????? | | ?????????????????????????????????????????????????? | | ?????????????###?????????????????????????????????? | | ????????????? ##??????????????????????????????? | | ???????????? ?????????????????????????????? | | ???????????? ????????????????????????????? | | ???????????? #???????????????????????????? | | ??????????? #??????????????????????????? | | ??????????? #?????????????????????????? | | ??????????# #????????????????????????? | | ???????????# ##??????????????????????? | | ????????????# ####???????????????????? | | ???????????????# ## ##??????????????####? | | ????????????????????### # % ##??????######## ## | | ??????????????????????## ## d ######## ## # | | ???????????????????????## #d # | # | | ??????????????????????### # * ! ### # | | ?????????????????????## # %! ##?## # | | ????????????????????## %= % % ##???## ## | | ????????????????????# % ##?????# ##? | | ?????????????????#### # ##??????# #?? | | ?????????????# a @ #####???????# #?? | | ?????????????????#### # ##???????????# #?? | | ????????????????????# ###????????????# #?? | | ????????????????????## ##??????????????# #?? | | ?????????????????????## ##?????????????### #?? | | ??????????????????????#######?????##???????# #?? | | ?????????????????????????????????## ???????# #?? | | ????????????????????????????###?## ???????# ##?? | | ???????????????????????????## ## ???????# #??? | | ???????????????????????????# ???????# #??? | | ??????????????????????????? #??????# #??? | | ????????????????????????????? ###???# #??? | | ????????????????????????????????# ##### #??? | | ?????????????????????????????????# #??? | | ?????????????????????????????????# #??? | | ????????????????????????????????## ######??? | | ????????????????????????????#####% #???????? | | ????????????????????????????# #???????? | | ????????????????????????????# #???????? | | ????????????????????????????# ### #???????? | | ????????????????????????????#????##% ! #???????? | | ??????????????????????????????????# =!! ##???????? | | ??????????????????????????????????##= #####??????? | | ???????????????????????????????????##%#"""####???? | | ????????????????????????????????????#%# % #???? | +----------------------------------------------------+ Best States ------------- Heat Dissipation 25 Energy Generation 10 Energy Capacity 250 Matter Stores 300 Matter Capacity 300 Sight Range 16 Terrain Scan Density 10 Armor Coverage 150 Evasion (%) 44 Recoil Reduction 2 Item Schematics ----------------- None Robot Schematics ------------------ None Fabricated ------------ Nothing Alien Tech Used ----------------- None Achievements -------------- None Challenges ------------ None Game ------ Seed MetafieldTrapNetwork Manual? 0 Play Time 00:09:14 Cumulative 205.3 hours Start 2021.07.06 @ 12:01:52 End 2021.07.06 @ 12:08:16 Sessions 1 Manual Loads 0 Difficulty Rogue Special Mode None Game No. 121 Rogue 121 Adventurer 0 Explorer 0 Win Type - Total 3 Types 2/0/0/1/0/0/0/0/0 Lore% 60 Gallery% 72 Achievement% 47 Wizard Run 0 Options --------- ASCII 0 Keyboard 0 Movement Numpad Keybinds 0 Fullscreen 1 Font 18/SmallcapsGlow Map View 76x50 Tactical HUD 1 Map Filters NONE Filters NONE Steam 1 RUN: 48884c57-68b1-4c05-bc11-cb6e02e37f70